[Event "Titled Tuesday Blitz January 17 Late 2023"]
[White "Holt, Conrad"]
[Black "Sadhwani, Raunak"]
[WhiteFideId "2034387"]
[BlackFideId "35093487"]
[WhiteElo "2540"]
[BlackElo "2627"]
[Result "1/2-1/2"]
[Round "04"]
[TimeControl "180+2"]
[Date "2023.01.17"]
[WhiteClock "0:00:08"]
[BlackClock "0:00:07"]

1. d4 {[%clk 0:03:00]}  Nf6 {[%clk 0:02:43]} 2. c4 {[%clk 0:03:01]}  g6 {[%clk 0:02:43]} 3. Nc3 {[%clk 0:03:01]}  Bg7 {[%clk 0:02:43]} 4. e4 {[%clk 0:03:01]}  d6 {[%clk 0:02:43]} 5. Nf3 {[%clk 0:03:02]}  O-O {[%clk 0:02:44]} 6. h3 {[%clk 0:03:03]}  b6 {[%clk 0:02:42]} 7. Bd3 {[%clk 0:03:01]}  Bb7 {[%clk 0:02:43]} 8. O-O {[%clk 0:03:01]}  Nc6 {[%clk 0:02:39]} 9. d5 {[%clk 0:02:59]}  Nb4 {[%clk 0:02:34]} 10. Bg5 {[%clk 0:02:56]}  Nxd3 {[%clk 0:02:33]} 11. Qxd3 {[%clk 0:02:56]}  h6 {[%clk 0:02:30]} 12. Bh4 {[%clk 0:02:49]}  Nd7 {[%clk 0:02:29]} 13. Rae1 {[%clk 0:02:45]}  Re8 {[%clk 0:02:11]} 14. Nd4 {[%clk 0:02:40]}  g5 {[%clk 0:01:56]} 15. Bg3 {[%clk 0:02:39]}  e6 {[%clk 0:01:57]} 16. Qd2 {[%clk 0:01:56]}  Ne5 {[%clk 0:01:54]} 17. b3 {[%clk 0:01:53]}  Ng6 {[%clk 0:01:54]} 18. Nce2 {[%clk 0:01:42]}  Qd7 {[%clk 0:01:37]} 19. f4 {[%clk 0:01:31]}  exd5 {[%clk 0:01:04]} 20. f5 {[%clk 0:01:17]}  Ne5 {[%clk 0:00:32]} 21. f6 {[%clk 0:01:14]}  Bf8 {[%clk 0:00:32]} 22. exd5 {[%clk 0:01:12]}  Ng6 {[%clk 0:00:32]} 23. Nf5 {[%clk 0:01:00]}  c6 {[%clk 0:00:28]} 24. dxc6 {[%clk 0:00:52]}  Qxc6 {[%clk 0:00:29]} 25. Ned4 {[%clk 0:00:49]}  Qc5 {[%clk 0:00:28]} 26. Kh2 {[%clk 0:00:37]}  Kh7 {[%clk 0:00:24]} 27. Nb5 {[%clk 0:00:33]}  Rxe1 {[%clk 0:00:15]} 28. Qxe1 {[%clk 0:00:33]}  Rd8 {[%clk 0:00:08]} 29. Qe2 {[%clk 0:00:23]}  a6 {[%clk 0:00:08]} 30. Nc3 {[%clk 0:00:19]}  d5 {[%clk 0:00:08]} 31. Nxd5 {[%clk 0:00:16]}  Bxd5 {[%clk 0:00:09]} 32. cxd5 {[%clk 0:00:16]}  Rxd5 {[%clk 0:00:09]} 33. Qe8 {[%clk 0:00:12]}  Nh8 {[%clk 0:00:03]} 34. Qe4 {[%clk 0:00:10]}  Ng6 {[%clk 0:00:03]} 35. Ne7 {[%clk 0:00:07]}  Rd4 {[%clk 0:00:02]} 36. Qb1 {[%clk 0:00:05]}  h5 {[%clk 0:00:03]} 37. Nxg6 {[%clk 0:00:04]}  fxg6 {[%clk 0:00:03]} 38. Bf2 {[%clk 0:00:05]}  Qd6+ {[%clk 0:00:03]} 39. Kh1 {[%clk 0:00:05]}  Rf4 {[%clk 0:00:02]} 40. Be3 {[%clk 0:00:05]}  Rxf6 {[%clk 0:00:02]} 41. Bxg5 {[%clk 0:00:04]}  Rxf1+ {[%clk 0:00:02]} 42. Qxf1 {[%clk 0:00:05]}  Bg7 {[%clk 0:00:03]} 43. Be3 {[%clk 0:00:03]}  b5 {[%clk 0:00:03]} 44. Bg1 {[%clk 0:00:04]}  Qe6 {[%clk 0:00:03]} 45. Qf2 {[%clk 0:00:03]}  Bf6 {[%clk 0:00:03]} 46. Qa7+ {[%clk 0:00:03]}  Kh6 {[%clk 0:00:04]} 47. Qf2 {[%clk 0:00:03]}  g5 {[%clk 0:00:04]} 48. Qd2 {[%clk 0:00:04]}  Kg6 {[%clk 0:00:04]} 49. Be3 {[%clk 0:00:04]}  Qf5 {[%clk 0:00:05]} 50. Kg1 {[%clk 0:00:05]}  Qe4 {[%clk 0:00:05]} 51. Kf2 {[%clk 0:00:05]}  g4 {[%clk 0:00:05]} 52. Kg3 {[%clk 0:00:05]}  Be5+ {[%clk 0:00:05]} 53. Kf2 {[%clk 0:00:06]}  g3+ {[%clk 0:00:06]} 54. Kf1 {[%clk 0:00:05]}  Qf5+ {[%clk 0:00:06]} 55. Ke2 {[%clk 0:00:05]}  Qe4 {[%clk 0:00:06]} 56. Qd3 {[%clk 0:00:06]}  Kf5 {[%clk 0:00:06]} 57. a4 {[%clk 0:00:06]}  b4 {[%clk 0:00:06]} 58. Kd2 {[%clk 0:00:06]}  Bc3+ {[%clk 0:00:05]} 59. Ke2 {[%clk 0:00:06]}  Be5 {[%clk 0:00:06]} 60. Kd2 {[%clk 0:00:06]}  Bf4 {[%clk 0:00:05]} 61. Qxe4+ {[%clk 0:00:05]}  Kxe4 {[%clk 0:00:06]} 62. Bxf4 {[%clk 0:00:06]}  Kxf4 {[%clk 0:00:06]} 63. Kd3 {[%clk 0:00:07]}  a5 {[%clk 0:00:06]} 64. Kd4 {[%clk 0:00:07]}  h4 {[%clk 0:00:06]} 65. Kd3 {[%clk 0:00:07]}  Kf5 {[%clk 0:00:06]} 66. Kd4 {[%clk 0:00:07]}  Kf4 {[%clk 0:00:06]} 67. Kd3 {[%clk 0:00:08]}  Kf5 {[%clk 0:00:06]} 68. Kd4 {[%clk 0:00:08]}  Kf4 {[%clk 0:00:07]} 1/2-1/2


[Site "https://www.chess.com"]

[Event "Titled Tuesday Blitz January 17 Late 2023"]
[White "Dominguez Perez, Leinier"]
[Black "Pakleza, Zbigniew"]
[WhiteFideId "3503240"]
[BlackFideId "1119290"]
[WhiteElo "2739"]
[BlackElo "2494"]
[Result "1-0"]
[Round "04"]
[TimeControl "180+2"]
[Date "2023.01.17"]
[WhiteClock "0:00:32"]
[BlackClock "0:00:02"]

1. d4 {[%clk 0:03:00]}  d6 {[%clk 0:02:59]} 2. Nf3 {[%clk 0:02:59]}  Bg4 {[%clk 0:02:59]} 3. e3 {[%clk 0:02:59]}  Nf6 {[%clk 0:02:55]} 4. Be2 {[%clk 0:02:59]}  c6 {[%clk 0:02:53]} 5. O-O {[%clk 0:02:58]}  e6 {[%clk 0:02:54]} 6. c4 {[%clk 0:02:58]}  d5 {[%clk 0:02:54]} 7. Nbd2 {[%clk 0:02:53]}  Be7 {[%clk 0:02:51]} 8. h3 {[%clk 0:02:52]}  Bh5 {[%clk 0:02:50]} 9. b3 {[%clk 0:02:51]}  O-O {[%clk 0:02:50]} 10. Bb2 {[%clk 0:02:52]}  Nbd7 {[%clk 0:02:49]} 11. Qc2 {[%clk 0:02:50]}  Bg6 {[%clk 0:02:48]} 12. Bd3 {[%clk 0:02:50]}  b5 {[%clk 0:02:45]} 13. Bxg6 {[%clk 0:02:48]}  hxg6 {[%clk 0:02:46]} 14. Rac1 {[%clk 0:02:47]}  bxc4 {[%clk 0:02:29]} 15. bxc4 {[%clk 0:02:47]}  Qa5 {[%clk 0:02:30]} 16. Bc3 {[%clk 0:02:43]}  Qa6 {[%clk 0:02:29]} 17. c5 {[%clk 0:02:22]}  Rfb8 {[%clk 0:02:16]} 18. Ne1 {[%clk 0:02:21]}  Ne8 {[%clk 0:02:04]} 19. Nd3 {[%clk 0:02:20]}  Qc8 {[%clk 0:01:37]} 20. Qa4 {[%clk 0:02:11]}  Rb5 {[%clk 0:01:06]} 21. Rb1 {[%clk 0:02:03]}  Nc7 {[%clk 0:00:54]} 22. Qc2 {[%clk 0:01:41]}  Rab8 {[%clk 0:00:48]} 23. a4 {[%clk 0:01:38]}  Rxb1 {[%clk 0:00:42]} 24. Rxb1 {[%clk 0:01:39]}  Rxb1+ {[%clk 0:00:35]} 25. Qxb1 {[%clk 0:01:40]}  Qb8 {[%clk 0:00:35]} 26. Qc2 {[%clk 0:01:24]}  Na6 {[%clk 0:00:29]} 27. e4 {[%clk 0:01:05]}  dxe4 {[%clk 0:00:24]} 28. Nxe4 {[%clk 0:01:05]}  Nf6 {[%clk 0:00:24]} 29. Ne5 {[%clk 0:01:03]}  Qb7 {[%clk 0:00:07]} 30. Ng5 {[%clk 0:01:02]}  Nd5 {[%clk 0:00:06]} 31. Ngxf7 {[%clk 0:00:57]}  Nf4 {[%clk 0:00:04]} 32. Bd2 {[%clk 0:00:45]}  Nb4 {[%clk 0:00:03]} 33. Qe4 {[%clk 0:00:41]}  Nfd5 {[%clk 0:00:02]} 34. Qxg6 {[%clk 0:00:40]}  Bf6 {[%clk 0:00:03]} 35. Bxb4 {[%clk 0:00:32]}  Qxb4 {[%clk 0:00:02]} 36. Nh6+ {[%clk 0:00:32]}  Kh8 {[%clk 0:00:02]} 37. Nef7# {[%clk 0:00:32]} 1-0


[Site "https://www.chess.com"]

[Event "Titled Tuesday Blitz January 17 Late 2023"]
[White "Rasulov, Vugar"]
[Black "Mahdavi, Reza"]
[WhiteFideId "13402390"]
[BlackFideId "12595926"]
[WhiteElo "2523"]
[BlackElo "2339"]
[Result "1-0"]
[Round "04"]
[TimeControl "180+2"]
[Date "2023.01.17"]
[WhiteClock "0:00:21"]
[BlackClock "0:01:24"]

1. d4 {[%clk 0:03:00]}  Nf6 {[%clk 0:02:54]} 2. c4 {[%clk 0:03:01]}  g6 {[%clk 0:02:55]} 3. Nc3 {[%clk 0:03:01]}  Bg7 {[%clk 0:02:56]} 4. e4 {[%clk 0:03:00]}  d6 {[%clk 0:02:56]} 5. h3 {[%clk 0:03:01]}  O-O {[%clk 0:02:56]} 6. Be3 {[%clk 0:03:01]}  e5 {[%clk 0:02:56]} 7. d5 {[%clk 0:03:01]}  a5 {[%clk 0:02:56]} 8. g4 {[%clk 0:02:58]}  Na6 {[%clk 0:02:57]} 9. Nge2 {[%clk 0:02:57]}  c6 {[%clk 0:02:55]} 10. Ng3 {[%clk 0:02:57]}  cxd5 {[%clk 0:02:55]} 11. cxd5 {[%clk 0:02:56]}  Bd7 {[%clk 0:02:56]} 12. Be2 {[%clk 0:02:52]}  Ne8 {[%clk 0:02:49]} 13. h4 {[%clk 0:02:51]}  Nc5 {[%clk 0:02:44]} 14. h5 {[%clk 0:02:46]}  Nc7 {[%clk 0:02:43]} 15. Qd2 {[%clk 0:02:38]}  b5 {[%clk 0:02:44]} 16. Bh6 {[%clk 0:02:37]}  Qe7 {[%clk 0:02:21]} 17. Bxg7 {[%clk 0:02:35]}  Kxg7 {[%clk 0:02:21]} 18. Rc1 {[%clk 0:02:17]}  b4 {[%clk 0:02:08]} 19. Nd1 {[%clk 0:02:17]}  Nb5 {[%clk 0:02:02]} 20. hxg6 {[%clk 0:01:43]}  fxg6 {[%clk 0:02:01]} 21. Qh6+ {[%clk 0:01:37]}  Kg8 {[%clk 0:02:01]} 22. Ne3 {[%clk 0:01:31]}  Nd4 {[%clk 0:01:57]} 23. Nc4 {[%clk 0:01:03]}  Rf7 {[%clk 0:01:50]} 24. Nb6 {[%clk 0:00:58]}  Raf8 {[%clk 0:01:47]} 25. Nxd7 {[%clk 0:00:57]}  Qxd7 {[%clk 0:01:48]} 26. Nf5 {[%clk 0:00:48]}  gxf5 {[%clk 0:01:46]} 27. exf5 {[%clk 0:00:48]}  Nxe2 {[%clk 0:01:43]} 28. Kxe2 {[%clk 0:00:48]}  Qb5+ {[%clk 0:01:44]} 29. Kf3 {[%clk 0:00:43]}  Qd3+ {[%clk 0:01:40]} 30. Kg2 {[%clk 0:00:35]}  Rg7 {[%clk 0:01:40]} 31. Rh4 {[%clk 0:00:29]}  Qxf5 {[%clk 0:01:40]} 32. Qxg7+ {[%clk 0:00:28]}  Kxg7 {[%clk 0:01:40]} 33. gxf5 {[%clk 0:00:29]}  Rxf5 {[%clk 0:01:41]} 34. Rch1 {[%clk 0:00:25]}  Nd3 {[%clk 0:01:35]} 35. Rxh7+ {[%clk 0:00:26]}  Kg8 {[%clk 0:01:35]} 36. Rh8+ {[%clk 0:00:26]}  Kg7 {[%clk 0:01:36]} 37. R1h7+ {[%clk 0:00:26]}  Kg6 {[%clk 0:01:36]} 38. Rh6+ {[%clk 0:00:26]}  Kg7 {[%clk 0:01:37]} 39. R8h7+ {[%clk 0:00:26]}  Kg8 {[%clk 0:01:38]} 40. Ra7 {[%clk 0:00:26]}  Rxf2+ {[%clk 0:01:37]} 41. Kg3 {[%clk 0:00:26]}  Rf7 {[%clk 0:01:26]} 42. Rg6+ {[%clk 0:00:19]}  Kf8 {[%clk 0:01:22]} 43. Ra8+ {[%clk 0:00:19]}  Ke7 {[%clk 0:01:22]} 44. Re6+ {[%clk 0:00:20]}  Kd7 {[%clk 0:01:23]} 45. Ra7+ {[%clk 0:00:21]}  Kd8 {[%clk 0:01:24]} 46. Rxf7 {[%clk 0:00:21]} 1-0


[Site "https://www.chess.com"]

[Event "Titled Tuesday Blitz January 17 Late 2023"]
[White "Ibarra Jerez, Jose Carlos"]
[Black "Manukyan, Sargis A."]
[WhiteFideId "2226332"]
[BlackFideId "13303970"]
[WhiteElo "2563"]
[BlackElo "2158"]
[Result "1-0"]
[Round "04"]
[TimeControl "180+2"]
[Date "2023.01.17"]
[WhiteClock "0:00:40"]
[BlackClock "0:00:04"]

1. e4 {[%clk 0:03:00]}  c5 {[%clk 0:02:57]} 2. Nc3 {[%clk 0:03:00]}  Nc6 {[%clk 0:02:56]} 3. Bb5 {[%clk 0:02:58]}  Nd4 {[%clk 0:02:53]} 4. Nf3 {[%clk 0:02:59]}  Nxb5 {[%clk 0:02:45]} 5. Nxb5 {[%clk 0:03:00]}  a6 {[%clk 0:02:42]} 6. Nc3 {[%clk 0:03:00]}  d6 {[%clk 0:02:40]} 7. d4 {[%clk 0:03:00]}  cxd4 {[%clk 0:02:40]} 8. Qxd4 {[%clk 0:03:00]}  Nf6 {[%clk 0:02:38]} 9. Bg5 {[%clk 0:02:59]}  e6 {[%clk 0:02:37]} 10. O-O-O {[%clk 0:02:58]}  Be7 {[%clk 0:02:37]} 11. Bxf6 {[%clk 0:02:42]}  Bxf6 {[%clk 0:02:13]} 12. Qxd6 {[%clk 0:02:42]}  Qxd6 {[%clk 0:02:13]} 13. Rxd6 {[%clk 0:02:41]}  Bxc3 {[%clk 0:02:12]} 14. bxc3 {[%clk 0:02:41]}  Bd7 {[%clk 0:02:12]} 15. Ne5 {[%clk 0:02:39]}  Ba4 {[%clk 0:01:58]} 16. Rb6 {[%clk 0:02:32]}  Rb8 {[%clk 0:01:51]} 17. Rd1 {[%clk 0:02:27]}  Ke7 {[%clk 0:01:47]} 18. Rd4 {[%clk 0:02:22]}  Bb5 {[%clk 0:01:38]} 19. a4 {[%clk 0:02:17]}  Be8 {[%clk 0:01:33]} 20. Rdb4 {[%clk 0:02:13]}  g5 {[%clk 0:01:11]} 21. Rxb7+ {[%clk 0:02:04]}  Rxb7 {[%clk 0:01:12]} 22. Rxb7+ {[%clk 0:02:04]}  Kf6 {[%clk 0:01:13]} 23. Ng4+ {[%clk 0:02:04]}  Kg7 {[%clk 0:01:06]} 24. a5 {[%clk 0:02:05]}  Bc6 {[%clk 0:01:03]} 25. Rb4 {[%clk 0:02:00]}  f5 {[%clk 0:00:58]} 26. exf5 {[%clk 0:01:56]}  exf5 {[%clk 0:00:59]} 27. Ne3 {[%clk 0:01:48]}  f4 {[%clk 0:00:59]} 28. Nf5+ {[%clk 0:01:48]}  Kf6 {[%clk 0:00:55]} 29. Rb6 {[%clk 0:01:47]}  Kxf5 {[%clk 0:00:52]} 30. Rxc6 {[%clk 0:01:47]}  Re8 {[%clk 0:00:34]} 31. Rxa6 {[%clk 0:01:46]}  Re2 {[%clk 0:00:33]} 32. Rd6 {[%clk 0:01:43]}  Rxf2 {[%clk 0:00:20]} 33. Rd2 {[%clk 0:01:07]}  Rf1+ {[%clk 0:00:20]} 34. Kb2 {[%clk 0:01:07]}  Re1 {[%clk 0:00:19]} 35. a6 {[%clk 0:01:07]}  Re6 {[%clk 0:00:18]} 36. Rd5+ {[%clk 0:01:07]}  Ke4 {[%clk 0:00:15]} 37. Ra5 {[%clk 0:01:04]}  Re8 {[%clk 0:00:14]} 38. Rxg5 {[%clk 0:01:03]}  Rb8+ {[%clk 0:00:13]} 39. Ka3 {[%clk 0:01:02]}  Ra8 {[%clk 0:00:11]} 40. Ra5 {[%clk 0:01:02]}  Ke3 {[%clk 0:00:11]} 41. Ra4 {[%clk 0:00:55]}  h5 {[%clk 0:00:09]} 42. h4 {[%clk 0:00:51]}  Rg8 {[%clk 0:00:07]} 43. a7 {[%clk 0:00:50]}  Ra8 {[%clk 0:00:07]} 44. Kb3 {[%clk 0:00:50]}  Kf2 {[%clk 0:00:04]} 45. Rxf4+ {[%clk 0:00:50]}  Kg3 {[%clk 0:00:05]} 46. Ra4 {[%clk 0:00:49]}  Kh2 {[%clk 0:00:05]} 47. c4 {[%clk 0:00:45]}  Kg3 {[%clk 0:00:04]} 48. c5 {[%clk 0:00:46]}  Kh2 {[%clk 0:00:03]} 49. c6 {[%clk 0:00:46]}  Kg3 {[%clk 0:00:02]} 50. c7 {[%clk 0:00:47]}  Kh2 {[%clk 0:00:03]} 51. c8=Q {[%clk 0:00:46]}  Rxc8 {[%clk 0:00:04]} 52. a8=Q {[%clk 0:00:47]}  Rc5 {[%clk 0:00:04]} 53. Qb8+ {[%clk 0:00:43]}  Kh1 {[%clk 0:00:03]} 54. Ra1+ {[%clk 0:00:42]}  Kxg2 {[%clk 0:00:04]} 55. Qg8+ {[%clk 0:00:41]}  Kh3 {[%clk 0:00:04]} 56. Rh1# {[%clk 0:00:40]} 1-0


[Site "https://www.chess.com"]

[Event "Titled Tuesday Blitz January 17 Late 2023"]
[White "Esipenko, Andrey"]
[Black "Wieczorek, Oskar"]
[WhiteFideId "24175439"]
[BlackFideId "1133950"]
[WhiteElo "2679"]
[BlackElo "2512"]
[Result "1-0"]
[Round "04"]
[TimeControl "180+2"]
[Date "2023.01.17"]
[WhiteClock "0:00:24"]
[BlackClock "0:00:11"]

1. e4 {[%clk 0:03:00]}  c5 {[%clk 0:02:59]} 2. Nf3 {[%clk 0:03:01]}  e6 {[%clk 0:03:00]} 3. Nc3 {[%clk 0:02:59]}  d6 {[%clk 0:03:00]} 4. h3 {[%clk 0:02:57]}  Nf6 {[%clk 0:02:57]} 5. g4 {[%clk 0:02:55]}  Nc6 {[%clk 0:02:50]} 6. Bg2 {[%clk 0:02:54]}  e5 {[%clk 0:02:46]} 7. d3 {[%clk 0:02:51]}  h6 {[%clk 0:02:42]} 8. Ne2 {[%clk 0:02:49]}  Be7 {[%clk 0:02:41]} 9. Ng3 {[%clk 0:02:47]}  g6 {[%clk 0:02:37]} 10. c3 {[%clk 0:02:46]}  Qb6 {[%clk 0:02:26]} 11. O-O {[%clk 0:02:46]}  Be6 {[%clk 0:02:26]} 12. Qe2 {[%clk 0:02:38]}  h5 {[%clk 0:02:21]} 13. g5 {[%clk 0:02:37]}  Nh7 {[%clk 0:02:15]} 14. h4 {[%clk 0:02:37]}  Bg4 {[%clk 0:02:13]} 15. Be3 {[%clk 0:02:37]}  Nf8 {[%clk 0:02:12]} 16. Qd2 {[%clk 0:02:36]}  O-O-O {[%clk 0:01:48]} 17. b4 {[%clk 0:02:32]}  Kb8 {[%clk 0:01:43]} 18. a4 {[%clk 0:02:31]}  Qc7 {[%clk 0:01:31]} 19. Rfc1 {[%clk 0:02:12]}  Ne6 {[%clk 0:01:25]} 20. Nh2 {[%clk 0:02:10]}  f5 {[%clk 0:01:26]} 21. gxf6 {[%clk 0:01:32]}  Bxf6 {[%clk 0:01:25]} 22. f3 {[%clk 0:01:32]}  Bxh4 {[%clk 0:01:25]} 23. Ngf1 {[%clk 0:01:33]}  Bf5 {[%clk 0:01:02]} 24. exf5 {[%clk 0:01:15]}  gxf5 {[%clk 0:01:03]} 25. Kh1 {[%clk 0:01:14]}  Rdg8 {[%clk 0:00:53]} 26. d4 {[%clk 0:00:56]}  Bg5 {[%clk 0:00:44]} 27. d5 {[%clk 0:00:54]}  Bxe3 {[%clk 0:00:43]} 28. Nxe3 {[%clk 0:00:51]}  Nf4 {[%clk 0:00:40]} 29. dxc6 {[%clk 0:00:52]}  Qxc6 {[%clk 0:00:41]} 30. Rd1 {[%clk 0:00:49]}  Rg6 {[%clk 0:00:40]} 31. Bf1 {[%clk 0:00:29]}  Rhg8 {[%clk 0:00:34]} 32. Bb5 {[%clk 0:00:29]}  Qc8 {[%clk 0:00:22]} 33. Rg1 {[%clk 0:00:23]}  Rxg1+ {[%clk 0:00:17]} 34. Rxg1 {[%clk 0:00:24]}  Rxg1+ {[%clk 0:00:18]} 35. Kxg1 {[%clk 0:00:24]}  Qg8+ {[%clk 0:00:18]} 36. Kh1 {[%clk 0:00:24]}  Qg3 {[%clk 0:00:18]} 37. Bf1 {[%clk 0:00:24]}  Kc7 {[%clk 0:00:11]} 38. Qxd6+ {[%clk 0:00:24]} 1-0


[Site "https://www.chess.com"]

[Event "Titled Tuesday Blitz January 17 Late 2023"]
[White "Iliaguev, Nisim"]
[Black "Kamsky, Gata"]
[WhiteFideId "2817276"]
[BlackFideId "2000024"]
[WhiteElo "2402"]
[BlackElo "2665"]
[Result "1-0"]
[Round "04"]
[TimeControl "180+2"]
[Date "2023.01.17"]
[WhiteClock "0:01:16"]
[BlackClock "0:00:10"]

1. d4 {[%clk 0:03:00]}  Nf6 {[%clk 0:02:55]} 2. Nf3 {[%clk 0:03:01]}  g6 {[%clk 0:02:54]} 3. g3 {[%clk 0:03:02]}  Bg7 {[%clk 0:02:54]} 4. Bg2 {[%clk 0:03:02]}  O-O {[%clk 0:02:54]} 5. O-O {[%clk 0:03:03]}  d6 {[%clk 0:02:52]} 6. c4 {[%clk 0:03:03]}  Nbd7 {[%clk 0:02:51]} 7. Nc3 {[%clk 0:03:04]}  c6 {[%clk 0:02:51]} 8. b3 {[%clk 0:03:03]}  Re8 {[%clk 0:02:47]} 9. Bb2 {[%clk 0:03:03]}  e5 {[%clk 0:02:46]} 10. dxe5 {[%clk 0:03:03]}  dxe5 {[%clk 0:02:46]} 11. Qc2 {[%clk 0:03:04]}  Nc5 {[%clk 0:02:43]} 12. Rad1 {[%clk 0:03:03]}  Qb6 {[%clk 0:02:40]} 13. Qc1 {[%clk 0:03:00]}  a5 {[%clk 0:02:38]} 14. Ba3 {[%clk 0:02:59]}  e4 {[%clk 0:02:09]} 15. Ng5 {[%clk 0:02:53]}  e3 {[%clk 0:02:06]} 16. f4 {[%clk 0:02:52]}  h6 {[%clk 0:02:02]} 17. Bxc5 {[%clk 0:02:48]}  Qxc5 {[%clk 0:02:01]} 18. Nge4 {[%clk 0:02:48]}  Nxe4 {[%clk 0:02:01]} 19. Nxe4 {[%clk 0:02:49]}  Qb4 {[%clk 0:01:50]} 20. Nd6 {[%clk 0:02:46]}  Re7 {[%clk 0:01:15]} 21. f5 {[%clk 0:02:38]}  Bxf5 {[%clk 0:00:58]} 22. Nxf5 {[%clk 0:02:38]}  gxf5 {[%clk 0:00:58]} 23. Rxf5 {[%clk 0:02:38]}  a4 {[%clk 0:00:53]} 24. Qc2 {[%clk 0:02:25]}  axb3 {[%clk 0:00:52]} 25. axb3 {[%clk 0:02:26]}  Qc3 {[%clk 0:00:52]} 26. Qxc3 {[%clk 0:02:02]}  Bxc3 {[%clk 0:00:51]} 27. Rd3 {[%clk 0:01:56]}  Bb4 {[%clk 0:00:45]} 28. Bf3 {[%clk 0:01:52]}  Ra2 {[%clk 0:00:42]} 29. Rd8+ {[%clk 0:01:38]}  Kg7 {[%clk 0:00:40]} 30. Rf4 {[%clk 0:01:37]}  Rd2 {[%clk 0:00:22]} 31. Rg4+ {[%clk 0:01:35]}  Kf6 {[%clk 0:00:23]} 32. Rh8 {[%clk 0:01:34]}  Re6 {[%clk 0:00:20]} 33. Rxh6+ {[%clk 0:01:32]}  Ke7 {[%clk 0:00:20]} 34. Rxe6+ {[%clk 0:01:32]}  Kxe6 {[%clk 0:00:19]} 35. h4 {[%clk 0:01:32]}  Bc3 {[%clk 0:00:18]} 36. Kg2 {[%clk 0:01:31]}  Kd6 {[%clk 0:00:16]} 37. h5 {[%clk 0:01:28]}  Kc5 {[%clk 0:00:15]} 38. h6 {[%clk 0:01:27]}  Rd8 {[%clk 0:00:13]} 39. h7 {[%clk 0:01:27]}  Rh8 {[%clk 0:00:12]} 40. Be4 {[%clk 0:01:27]}  Kb4 {[%clk 0:00:12]} 41. Bc2 {[%clk 0:01:19]}  Ka3 {[%clk 0:00:12]} 42. Rf4 {[%clk 0:01:16]}  Kb2 {[%clk 0:00:13]} 43. Bd3 {[%clk 0:01:16]}  Kxb3 {[%clk 0:00:12]} 44. Rxf7 {[%clk 0:01:17]}  b6 {[%clk 0:00:12]} 45. g4 {[%clk 0:01:16]}  Kb4 {[%clk 0:00:10]} 46. g5 {[%clk 0:01:16]} 1-0


[Site "https://www.chess.com"]

[Event "Titled Tuesday Blitz January 17 Late 2023"]
[White "Vlassov, Nikolai"]
[Black "Bortnyk, Mykola"]
[WhiteFideId "4103360"]
[BlackFideId "14120836"]
[WhiteElo "2283"]
[BlackElo "2425"]
[Result "0-1"]
[Round "04"]
[TimeControl "180+2"]
[Date "2023.01.17"]
[WhiteClock "0:00:24"]
[BlackClock "0:00:39"]

1. e4 {[%clk 0:03:00]}  Nf6 {[%clk 0:02:57]} 2. e5 {[%clk 0:02:58]}  Nd5 {[%clk 0:02:58]} 3. d4 {[%clk 0:02:58]}  d6 {[%clk 0:02:58]} 4. c4 {[%clk 0:02:59]}  Nb6 {[%clk 0:02:58]} 5. exd6 {[%clk 0:02:59]}  cxd6 {[%clk 0:02:57]} 6. Nc3 {[%clk 0:02:58]}  g6 {[%clk 0:02:58]} 7. a4 {[%clk 0:02:58]}  Bg7 {[%clk 0:02:51]} 8. a5 {[%clk 0:02:58]}  N6d7 {[%clk 0:02:51]} 9. Nf3 {[%clk 0:02:58]}  O-O {[%clk 0:02:46]} 10. Be3 {[%clk 0:02:57]}  Nc6 {[%clk 0:02:42]} 11. a6 {[%clk 0:02:53]}  bxa6 {[%clk 0:02:41]} 12. Be2 {[%clk 0:02:52]}  Rb8 {[%clk 0:02:38]} 13. Qc2 {[%clk 0:02:47]}  Nb4 {[%clk 0:02:33]} 14. Qd2 {[%clk 0:02:46]}  Nf6 {[%clk 0:02:27]} 15. O-O {[%clk 0:02:44]}  Bf5 {[%clk 0:02:27]} 16. h3 {[%clk 0:02:30]}  Qd7 {[%clk 0:02:18]} 17. Nh4 {[%clk 0:02:20]}  Ne4 {[%clk 0:02:11]} 18. Qc1 {[%clk 0:02:07]}  Rfc8 {[%clk 0:01:49]} 19. Nxf5 {[%clk 0:02:03]}  gxf5 {[%clk 0:01:47]} 20. b3 {[%clk 0:01:41]}  d5 {[%clk 0:01:36]} 21. c5 {[%clk 0:01:35]}  Rxc5 {[%clk 0:01:35]} 22. dxc5 {[%clk 0:01:31]}  Nxc3 {[%clk 0:01:36]} 23. Bh5 {[%clk 0:01:13]}  Qc6 {[%clk 0:01:24]} 24. Qd2 {[%clk 0:01:05]}  Ne4 {[%clk 0:01:20]} 25. Qe2 {[%clk 0:01:01]}  d4 {[%clk 0:01:14]} 26. Bf4 {[%clk 0:00:51]}  d3 {[%clk 0:01:15]} 27. Bxf7+ {[%clk 0:00:40]}  Kxf7 {[%clk 0:01:11]} 28. Qh5+ {[%clk 0:00:40]}  Qg6 {[%clk 0:01:11]} 29. Qxg6+ {[%clk 0:00:40]}  hxg6 {[%clk 0:01:12]} 30. Bxb8 {[%clk 0:00:39]}  Bxa1 {[%clk 0:01:12]} 31. Rxa1 {[%clk 0:00:37]}  Nxc5 {[%clk 0:01:02]} 32. Bxa7 {[%clk 0:00:33]}  Nxb3 {[%clk 0:00:49]} 33. Rb1 {[%clk 0:00:24]}  d2 {[%clk 0:00:41]} 34. Kf1 {[%clk 0:00:24]}  Nc1 {[%clk 0:00:39]} 0-1


[Site "https://www.chess.com"]